Cogmind - Beta 15 @@@ ROGUE MODE // 2025.06.05 @ 01:02:57 Player: jumpy Result: Destroyed by Y-45 Defender with Heavy Assault Rifle Performance ------------- Evolutions (1) 500 Regions Visited (3) 600 Robots Destroyed (29) 145 Value Destroyed (641) 641 Prototype IDs (3) 60 Alien Tech Used (0) 0 Bonus (0) 0 TOTAL SCORE: 1946 Bonus ------- None Cogmind --------- Core Integrity 0/400 Matter 258/300 Energy 99/100 System Corruption 0% Temperature Cool (15) Movement Core (50) Location -9/Storage Parts ------- > --- POWER (1) -------- (None) > --- PROPULSION (3) --- (None) > --- UTILITY (3) ------ (None) > --- WEAPON (2) ------- (None) > --- INVENTORY (5) ---- Heavy Ion Engine Cooled Ion Engine Cooled Ion Engine Wheel Compact Wheel Peak State ------------ > --- POWER ------------ Heavy Ion Engine > --- PROPULSION ------- Light Treads Light Treads Cooled VTOL Module > --- UTILITY ---------- Small Storage Unit Improved Terrain Scanner Seismic Detector > --- WEAPON ----------- Small Laser Heavy Assault Rifle > --- INVENTORY -------- Ion Engine Wheel Compact Wheel Terrain Scan Processor Seismic Detector Light Cannon Mining Laser [Rating: 18] Favorites ----------- Power Heavy Ion Engine Engine Heavy Ion Engine Propulsion Light Treads Treads Light Treads Flight Unit Cooled VTOL Module Utility Seismic Detector Device Seismic Detector Storage Small Storage Unit Weapon Small Laser Energy Gun Small Laser Ballistic Gun Heavy Assault Rifle Ballistic Cannon Light Cannon Build | -11 -10 -9 -9 ------- Run | Yrd Mat Mat Sto Slots Evolved 2 | . . 2 . Power . | . . . . Propulsion 1 | . . 1 . Utility 1 | . . 1 . Weapon . | . . . . Parts Attached 18 | 7 . 2 9 Power 3 | 1 . 1 1 Engine 3 | 1 . 1 1 Core . | . . . . Reactor . | . . . . Propulsion 4 | 2 . . 2 Treads 3 | 2 . . 1 Leg . | . . . . Wheel . | . . . . Hover . | . . . . Flight 1 | . . . 1 Utility 4 | 2 . . 2 Device 2 | 1 . . 1 Storage 2 | 1 . . 1 Processor . | . . . . Hackware . | . . . . Protection . | . . . . Artifact . | . . . . Weapon 7 | 2 . 1 4 Energy Gun 2 | 1 . . 1 Energy Cannon . | . . . . Ballistic Gun 4 | 1 . 1 2 Ballistic Cannon 1 | . . . 1 Launcher . | . . . . Special Weapon . | . . . . Impact Weapon . | . . . . Slashing Weapon . | . . . . Piercing Weapon . | . . . . Special Melee Weapon . | . . . . Unidentified Prototypes 3 | . . 1 2 Parts Lost 7 | . . . 7 Power . | . . . . Propulsion 3 | . . . 3 Utility 1 | . . . 1 Weapon 3 | . . . 3 Highest Loss Streak 3 | . . . 3 To Critical Strikes . | . . . . Average Backups 6 | 3 6 7 7 Power 1 | . 1 1 1 Propulsion 1 | 1 2 2 2 Utility 2 | . 2 2 2 Weapon 1 | . 1 2 2 Tool/Special . | . . . . Unused Backups 11 | . 1 . 10 Power 5 | . 1 . 4 Propulsion 2 | . . . 2 Utility 2 | . . . 2 Weapon 2 | . . . 2 Tool/Special . | . . . . Average Slot Usage (%) 87 | . 100 77 84 Engine 11 | . 14 11 11 Treads 22 | . 28 22 19 Device 18 | . 14 11 21 Storage 11 | . 14 11 11 Energy Gun 8 | . 14 11 5 Ballistic Gun 12 | . 14 11 12 Ballistic Cannon 1 | . . . 2 Peak Build Rating 18 | 7 7 11 18 Average Rating 9 | 5 7 8 13 On Entrance 6 | . 7 7 11 Naked Turns 2 | . . . 2 Heaviest Build 26 | 14 14 18 26 Greatest Support 60 | 40 40 40 60 Greatest Overweight (x) 1 | . . . 1 Average Overweight (x) . | . . . . Largest Inventory Capacity 10 | 8 8 8 10 Average Capacity 8 | 7 8 8 8 Most Carried 10 | 6 7 8 10 Average Carried 6 | 3 6 7 7 Final Capacity 8 | 8 8 8 5 Final Carried 8 | 6 7 8 5 Class Distribution -------------------- 80% | Mutant 19% | Scavenger-Mutant Dominant Class ---------------- Mutant | -10/Materials Mutant | -9/Materials Mutant | -9/Storage Resources | -11 -10 -9 -9 ----------- Run | Yrd Mat Mat Sto Matter Collected 726 | 318 6 30 372 Remotely . | . . . . Salvage Created 927 | 248 47 53 579 Parts 63 | 19 4 7 33 Haulers Intercepted . | . . . . Recyclers Shooed . | . . . . Parts Field Recycled . | . . . . Retrieved Matter . | . . . . Parts Self-Destructed . | . . . . Prevented . | . . . . Kills | -11 -10 -9 -9 ------- Run | Yrd Mat Mat Sto Combat Hostiles Destroyed 20 | . 1 1 18 Guns 16 | . 1 1 14 Cannons 4 | . . . 4 Classes Destroyed 6 | 3 1 1 1 Worker 2 | 2 . . . Tunneler 6 | 6 . . . Recycler 1 | 1 . . . Swarmer 7 | . . . 7 Grunt 7 | . 1 . 6 Sentry 6 | . . 1 5 Best Kill Streak 4 | 4 1 1 4 Combat Bots Only 4 | . 1 1 4 Max Kills in Single Turn 2 | 1 1 1 2 Gunslinging 1 | . . . 1 Exploded . | . . . . Melee . | . . . . Uniques/NPCs Destroyed . | . . . . Combat | -11 -10 -9 -9 -------- Run | Yrd Mat Mat Sto Hostile Shots Fired 142 | . 1 3 138 Missed 31 | . . 1 30 Hits 111 | . 1 2 108 Melee 6 | . . . 6 Projectile 105 | . 1 2 102 Critical Strikes 7 | . . 1 6 Damage Taken 1452 | . 12 28 1412 Core 401 | . . 14 387 Absorbed by Shields . | . . . . Core Remaining (%) 100 | 100 100 . . Volleys Fired 89 | 16 5 1 67 Largest 2 | 2 2 2 2 Hottest 63 | 60 60 60 63 Shots Fired 163 | 32 10 2 119 Gun 136 | 32 10 2 92 Cannon 27 | . . . 27 Launcher . | . . . . Special . | . . . . Kinetic 126 | 16 5 1 104 Thermal 37 | 16 5 1 15 Explosive . | . . . . Electromagnetic . | . . . . Robot Hit Streak 25 | 11 3 2 25 Robot Miss Streak 4 | 3 2 . 4 Penetration Max . | . . . . Secondary Targets 3 | . . . 3 Max Gunslinging Chain 1 | . . . 1 Shots Hit Robots 121 | 22 5 2 92 Core Hits 44 | 10 3 2 29 Critical Kills . | . . . . Critical Parts Destroyed 1 | . . . 1 Critical Strikes 1 | . . . 1 Destroy 1 | . . . 1 Melee Attacks . | . . . . Impact . | . . . . Slashing . | . . . . Piercing . | . . . . Sneak Attacks . | . . . . Combat Hostiles . | . . . . Follow-up Attacks . | . . . . Damage Inflicted 1769 | 269 79 25 1396 Guns 1362 | 269 70 25 998 Cannons 392 | . . . 392 Explosions . | . . . . Melee . | . . . . Ramming 15 | . 9 . 6 Kinetic 1448 | 138 48 14 1248 Thermal 306 | 131 22 11 142 Explosive . | . . . . Electromagnetic . | . . . . Impact . | . . . . Slashing . | . . . . Piercing . | . . . . Highest Corruption . | . . . . Average Corruption . | . . . . Corruption Purged . | . . . . Corruption Blocked . | . . . . Overload Shots . | . . . . Overflow Damage . | . . . . Projectiles . | . . . . Explosions . | . . . . Melee . | . . . . Knockbacks 13 | . . . 13 Impact . | . . . . Kinetic 9 | . . . 9 Secondary 4 | . . . 4 Self-Inflicted Damage . | . . . . Shots . | . . . . Rammed 5 | . 1 . 4 Targets Rammed 5 | . 1 . 4 Kicked . | . . . . Crushed . | . . . . Highest Temperature 56 | . 6 7 56 Average Temperature 16 | . 6 4 17 Received Heat Transfer 543 | . 6 27 510 Siege Activations . | . . . . Martial Activations . | . . . . Shielding Activations . | . . . . Robots Disrupted . | . . . . Combat Hostiles . | . . . . Robots Corrupted . | . . . . Combat Hostiles . | . . . . Parts Fried . | . . . . Impact Corruptions . | . . . . Robots Melted . | . . . . Combat Hostiles . | . . . . Parts Melted . | . . . . Heat Transferred 700 | 300 50 25 325 Parts Sabotaged . | . . . . Parts Stolen . | . . . . Parts Stripped . | . . . . Power Chain Reactions . | . . . . Alert | -11 -10 -9 -9 ------- Run | Yrd Mat Mat Sto Maximum Alert Level 1 | . . . 1 Low Security (%) 85 | 100 100 100 70 Level 1 14 | . . . 29 Level 2 . | . . . . Level 3 . | . . . . Level 4 . | . . . . Level 5 . | . . . . High Security . | . . . . Max Security . | . . . . Peak Influence 226 | 10 30 30 226 Initial 8 | . . . 8 Average 59 | 1 2 4 116 Influence Increases 604 | 45 30 30 499 Destroy 0b10 Robot/C 400 | . 20 20 360 Destroy 0b10 Robot/NC 45 | 45 . . . Destroy Leader 120 | . 10 10 100 Successful Hack 7 | . . . 7 Destroy Structure 2 | . . . 2 Lose Combat Pursuer 30 | . . . 30 Influence Decreases 424 | 45 30 10 339 Entered New Map 12 | . . . 12 Time Decay 302 | 45 30 10 217 Lost Part 70 | . . . 70 Lost Ally 40 | . . . 40 Squads Dispatched 9 | . 2 . 7 Investigation . | . . . . Extermination . | . . . . Reinforcement 3 | . 2 . 1 Assault 2 | . . . 2 Garrison 4 | . . . 4 Intercept . | . . . . Searches Triggered . | . . . . Construction Impeded . | . . . . Haulers Reinforced . | . . . . Active Scanning Responses . | . . . . Cargo Convoy Interrupts . | . . . . Stealth | -11 -10 -9 -9 --------- Run | Yrd Mat Mat Sto Distress Signals 2 | . . . 2 Communications Jammed . | . . . . Distress Signals . | . . . . Times Spotted 38 | . 4 3 31 Peak Tracking Total 11 | . 1 2 11 Tactical Retreats 1 | . . . 1 Traps | -11 -10 -9 -9 ------- Run | Yrd Mat Mat Sto Traps Triggered . | . . . . Indirectly . | . . . . Trap Hack Attempts . | . . . . Triggered . | . . . . Disarmed . | . . . . Reprogrammed . | . . . . Reused . | . . . . Traps Extracted . | . . . . Installed . | . . . . Triggered . | . . . . Machines | -11 -10 -9 -9 ---------- Run | Yrd Mat Mat Sto Machines Disabled . | . . . . Max in Single Turn . | . . . . Machines Repaired . | . . . . Machines Dismantled . | . . . . Machines Sabotaged . | . . . . Overloaded Fab Kills . | . . . . Hacking | -11 -10 -9 -9 --------- Run | Yrd Mat Mat Sto Machines Accessed 5 | . 2 . 3 Terminals 5 | . 2 . 3 Fabricators . | . . . . Repair Stations . | . . . . Recycling Units . | . . . . Scanalyzers . | . . . . Garrison Access . | . . . . Total Hacks 9 | . 2 . 7 Successful 3 | . 2 . 1 Failed 6 | . . . 6 Catastrophic 1 | . . . 1 Database Lockouts . | . . . . Manual 5 | . 2 . 3 Terminals 9 | . 2 . 7 Fabricators . | . . . . Repair Stations . | . . . . Recycling Units . | . . . . Scanalyzers . | . . . . Garrison Access . | . . . . Terminal Hacks 1 | . . . 1 Open Door 1 | . . . 1 Fabricator Hacks . | . . . . Repair Station Hacks . | . . . . Recycling Unit Hacks . | . . . . Scanalyzer . | . . . . Garrison Access Hacks . | . . . . Unauthorized Hacks 2 | . 2 . . Terminals 2 | . 2 . . Skim 2 | . 2 . . Fabricators . | . . . . Repair Stations . | . . . . Recycling Units . | . . . . Scanalyzers . | . . . . Garrison Access . | . . . . Data Cores Recovered . | . . . . Used . | . . . . Hacking Detections 2 | . . . 2 Full Trace Events . | . . . . Feedback Events . | . . . . Feedback Blocked . | . . . . Robot Schematics Acquired . | . . . . Robots Built . | . . . . Authchips . | . . . . Time . | . . . . Total Robot Build Rating . | . . . . Part Schematics Acquired . | . . . . Parts Built . | . . . . Authchips . | . . . . Time . | . . . . Total Part Build Rating . | . . . . Parts Repaired . | . . . . Time . | . . . . Parts Recycled . | . . . . Recycled Matter . | . . . . Retrieved Matter . | . . . . Retrieved Components . | . . . . Parts Scanalyzed . | . . . . Part Schematics Acquired . | . . . . Parts Damaged . | . . . . Bothacking | -11 -10 -9 -9 ------------ Run | Yrd Mat Mat Sto Used RIF Installer . | . . . . Robots Hacked . | . . . . Non-combat . | . . . . Combat . | . . . . Robot Hacks Applied . | . . . . Relay Couplers Released . | . . . . Fabnet Peak Effective % . | . . . . Robots Rewired . | . . . . Allies Hacked . | . . . . Hacks Repelled . | . . . . Allies | -11 -10 -9 -9 -------- Run | Yrd Mat Mat Sto Total Allies 2 | . . . 2 Largest Group 2 | . . . 2 Highest-Rated Group 62 | . . . 62 Highest-Rated Ally 31 | . . . 31 Total Orders . | . . . . Ally Attacks 10 | . . . 10 Total Damage 165 | . . . 165 Kills . | . . . . Allies Corrupted . | . . . . Allies Melted . | . . . . Intel | -11 -10 -9 -9 ------- Run | Yrd Mat Mat Sto Active Infowar (turns) 1182 | 100 289 130 663 Terrain 621 | . . . 621 Seismic 1182 | 100 289 130 663 Robot Analysis Total . | . . . . Derelict Logs Recovered . | . . . . Drone Launches . | . . . . Drone Recoveries . | . . . . Exploration | -11 -10 -9 -9 ------------- Run | Yrd Mat Mat Sto Turns Passed 1327 | 243 289 130 665 Spaces Moved 592 | 115 169 75 233 Core 8 | 4 . . 4 Treads 584 | 111 169 75 229 Legs . | . . . . Wheels . | . . . . Hover . | . . . . Flight . | . . . . Fastest Speed 50 | 50 160 160 50 Average Speed 165 | 156 160 160 176 Slowest Speed 240 | 160 160 160 240 Overloaded Moves . | . . . . Propulsion Burnouts . | . . . . Robots Hopped . | . . . . Potential Cave-ins . | . . . . Cave-ins Triggered . | . . . . Exploration Rate (%) 19 | 6 31 10 32 Regions Visited 3 Branch Regions 1 Pre-discovered Areas 1 | . . . 1 Known Exits Taken . | . . . . Unknown Exits Taken 3 | 1 1 1 . Scrap Searched . | . . . . Spaces Dug . | . . . . Terrain Destroyed . | . . . . Melee . | . . . . Projectile . | . . . . AOE . | . . . . Terrain Rammed . | . . . . Walls Destroyed . | . . . . Machines Disabled . | . . . . Actions | -11 -10 -9 -9 --------- Run | Yrd Mat Mat Sto Total 762 | 143 178 82 359 Wait 41 | . 1 4 36 Move 589 | 114 168 74 233 Hop . | . . . . Pick Up 13 | 6 2 1 4 Fast Attach 12 | 7 . . 5 Attach 2 | . . . 2 Detach . | . . . . Swap 7 | . . 2 5 Drop 4 | . 1 . 3 Fire 89 | 16 5 1 67 Melee . | . . . . Ram 2 | . . . 2 Kick . | . . . . Crush 3 | . 1 . 2 Escape Stasis . | . . . . Rewire . | . . . . Trap . | . . . . Miscellaneous . | . . . . Route ------- -11/Scrapyard -10/Materials -9/Materials -9/Storage History --------- Turn | Location | Event 5 | -11/Scrapyard | Discovered new exit (range 15) 244 | -11/Scrapyard | Entered Materials 316 | -10/Materials | Build established: Mutant 393 | -10/Materials | Discovered new exit (range 8) 533 | -10/Materials | Entered another Materials area 533 | -9/Materials | Evolved 2 slots: Propulsion x1, Utility x1 638 | -9/Materials | Discovered new exit (range 7) 663 | -9/Materials | Entered Storage 816 | -9/Storage | Learned location of Armory (-4) 875 | -9/Storage | Garrison activated, responded to threat 1189 | -9/Storage | Met a pair of Derelict thieves 1294 | -9/Storage | Core integrity fell below 50% 1313 | -9/Storage | Garrison activated, responded to threat 1324 | -9/Storage | Core integrity fell below 20% 1326 | -9/Storage | Released all parts (3) 1328 | -9/Storage | Destroyed by Y-45 Defender with Heavy Assault Rifle Last Messages --------------- 01301_ L-31 Rogue knocked back. 01303_ G-34 Mercenary knocked back. 01308_ Lgt. Treads destroyed. 01311_ G-47 Trooper knocked back. 01311_ K-01 Serf collects debris. 01313_ G-47 Trooper calls for garrison reinforcements. 01313_ ALERT: Activating Garrison Access S001. 01314_ K-01 Serf cleans the Door Terminal. 01315_ G-47 Trooper knocked back. 01316_ Acquired 3 matter. 01318_ K-01 Serf cleans the Door Terminal. 01319_ Slammed into G-47 Trooper. 01322_ K-01 Serf collects debris. 01323_ Lgt. Cannon destroyed. 01323_ Slammed into G-34 Mercenary. 01326_ Imp. Terrain Scanner destroyed. 01326_ Released Cld. Ion Engine. 01326_ Released Med. Storage Unit. 01326_ Released Seismic Detector. 01327_ Acquired 56 matter. Map ----- +----------------------------------------------------+ | ???????????????????????????????????????? | | ???????????????????????????????????????? | | ???????????????????????????????????????? | | ???????????????????????????????????????? | | ???????????????????????????????????????? | | ???????????????????????????????????????? | | ???????????????????????????????????????? | | ???????????????????????????????????????? | | ???????????????????????????????????????? | | ???????????????????????????????????????? | | ??????????????????????? ?????????????? | | ??????????????????????# ?????????????? | | ?????????????????????## #????????????? | | ?????????????????????# ????????????? | | ????????????????????? ????????????? | | ?? ?????? ???????????? ?????????##?? | | ?????????????? ??????? ? ??????????? | | ??#??#???????????#?##? ?????????#??? | | ????? ??????????????#?# ##???????????? | | ?????????????#?????? ?#% #?????????#?#? | | ###? ??????"#?????????# #??#?????#???? | | ???????????????T? ???## #????????????? | | ?????????????#??????#?#%% #??#??#????#?? | | ??? ????????????##?#??# ####???##????? | | ?#??????????????#?????# #??????#?????? | | ???????????????#???#??# r@#??#?????????? | | ?############???#???### =###########??? | | ?# ###???#?#### ! ## # ##??? | | ?# """ ########### %g!#=[" * #???# | | ?# """"?" # !**g# % #??#? | | ## "????" %+ % !lg/%%" *##?#? | | + "????" # |i!##T# ** #???? | | ## "????" ###+#/#####k r/%#### * *#??#? | | ## "?? ## ### ###??######???? | | ## ?? ## """ "" #?# ########?##???? | | ############# """ T" ### # #??????? | | ##?#???????## """ "" ###%#!! #?#???## | | ?????##??#??# ## +![= #????#?# | | ?#???????#??######T##### #**[ =##?????? | | ??#????????## [########Y# %= #???#??? | | ??#?#?????#?# [ *[ +=*%* #?#?#??# | | ??#????#????# ###+####+#########????#? | | ????#????#####+###! # ???#?????##??? | | ?#????????# #[ # ??????#????#?? | | ?????????##! ! # !]# """?#??????#???# | | ??#??#????#!/ #! # """?###??#??#??? | | ????#?????#!! # # """ ??#??#??#??? | | ??????#?#?# #| # ???#???????# | | ?????????# "T" # ##" "###??????????? | | ?????????##############"G"#????????????? | +----------------------------------------------------+ Best States ------------- Heat Dissipation 28 Energy Generation 14 Energy Capacity 280 Matter Stores 300 Matter Capacity 300 Sight Range 16 Terrain Scan Range 16 Terrain Scan Density 10 Evasion (%) 40 Recoil Reduction 3 Item Schematics ----------------- None Robot Schematics ------------------ None Fabricated ------------ Nothing Repaired ---------- Nothing Alien Tech Used ----------------- None Achievements -------------- None Challenges ------------ None Game ------ Seed ConstructMyomerRedirector Manual? 0 Play Time 00:09:59 Cumulative 123.9 hours Start 2025.06.05 @ 00:56:34 End 2025.06.05 @ 01:02:57 Sessions 1 Manual Loads 0 Difficulty Rogue Special Mode None Game No. 320 Rogue 320 Adventurer 0 Explorer 0 Win Type - Total 3 Types 2/0/1/0/0/0/0/0/0/0 Lore% 61 Gallery% 53 Achievement% 45 Wizard Run 0 Options --------- Layout 0 ASCII 0 Keyboard 0 Movement Numpad Keybinds 0 Fullscreen 2 Font 18/Terminus Map View 76x50 Zoom Use 0% Tactical HUD 1 Map Filters NONE Filters NONE Steam 1 RUN: 94e105f8-8917-421e-bc46-68bf8b87afeb